bitfinex/quotes_SOLUSD_20240729
["timestamp","ask_amount","ask_price","bid_price","bid_amount"]
[1722295268334,1.36485555,183.26,183.19,5.4587]
[1722295268638,5.458,183.22,183.13,13.6508]
[1722295268846,1.3650947,183.21,183.13,13.6508]
[1722295269130,5.4597,183.16,183.1,5.4614]
[1722295269337,29.38,183.24,183.1,5.4614]
[1722295269338,1.36547339,183.15,183.1,5.4614]
[1722295269636,1.36543676,183.14,183.09,13.6538]
[1722295269831,0.17,183.13,183.09,13.6538]
[1722295270032,1.53545698,183.13,183.09,13.6538]
[1722295270333,6.82355698,183.22,183.15,5.46]
[1722295270533,1.36545698,183.22,183.16,5.4595]
[1722295270826,1.36545698,183.22,183.15,13.6499]
[1722295271431,5.4572,183.25,183.19,5.4587]
[1722295271727,1.36482007,183.24,183.19,5.4587]
[1722295271932,1.36482007,183.24,183.2,5.4584]
[1722295272543,5.4567,183.26,183.2,5.4584]
[1722295272544,1.36479912,183.25,183.2,5.4584]
[1722295272730,1.36479912,183.25,183.19,5.4587]
[1722295272936,1.36479912,183.25,183.2,5.4584]
[1722295273514,1.36479912,183.25,183.2,5.4582]
[1722295274016,6.82179912,183.25,183.18,19.1065]
[1722295274215,1.36479912,183.25,183.14,13.65]
[1722295274437,5.4582,183.22,183.14,13.65]
[1722295274617,0.17,183.21,183.14,13.65]
[1722295274816,5.6282,183.21,183.15,5.4598]
[1722295275123,5.459,183.19,183.1,13.6532]
[1722295275318,5.4594,183.17,183.11,5.4611]
[1722295275534,1.53539121,183.16,183.11,5.4611]
[1722295275924,5.46,183.15,183.08,5.4618]
[1722295276131,5.46,183.15,183.07,13.6559]
[1722295276132,1.53563422,183.14,183.07,13.6559]
[1722295276439,0.17,183.13,183.04,5.463]
[1722295276621,1.36598874,183.12,182.99,15.8711]
[1722295276824,5.4633,183.04,182.97,5.4653]
[1722295277028,1.36653237,183.03,182.95,6.1955]
[1722295277244,1.36653237,183.03,182.97,5.4653]
[1722295277446,0.17,183.02,182.95,6.1955]
[1722295277658,1.36653945,183.01,182.99,5.4646]
[1722295277820,0.17,183.0,182.99,5.4646]
[1722295279232,0.17,183.0,182.92,13.6666]
[1722295279436,0.17,183.0,182.88,13.6698]
[1722295279437,5.4654,182.97,182.88,13.6698]
[1722295279646,1.36717838,182.96,182.88,13.6698]
[1722295279832,1.53714109,182.95,182.88,13.6698]
[1722295280146,1.36707368,182.94,182.92,5.4668]
[1722295280446,0.17,182.95,182.94,5.4662]
[1722295281314,0.17,182.95,182.91,13.6672]
[1722295281715,0.17,182.95,182.93,5.4665]
[1722295283337,0.17,182.95,182.94,5.4662]
[1722295285243,1.36670165,183.04,182.98,13.6625]
[1722295285430,1.36636876,183.03,182.98,13.6625]
[1722295285772,1.36636876,183.03,183.01,13.6602]
[1722295286042,5.4621,183.08,183.02,5.4638]
[1722295286246,1.36619197,183.07,183.01,13.6602]
[1722295286424,5.4627,183.06,182.99,5.4647]
[1722295286625,1.36646336,183.05,183.0,5.4644]
[1722295286930,1.36630632,183.04,183.0,5.4644]
[1722295287251,0.17,183.03,183.01,5.4641]
[1722295287444,0.17,183.03,183.02,5.4638]
[1722295287826,1.36619918,183.09,183.0,13.661]
[1722295288145,1.36619918,183.09,183.03,19.1221]
[1722295288321,1.36619918,183.09,183.03,13.6586]
[1722295288837,2.69798803,183.1,183.05,5.4629]
[1722295289151,1.36608803,183.08,183.05,5.4629]
[1722295289344,6.82687422,183.12,183.05,5.4629]
[1722295289647,6.82687422,183.12,183.06,5.4626]
[1722295290044,1.36597422,183.12,183.06,5.4626]
[1722295290241,1.36597422,183.12,183.06,13.6566]
[1722295290555,1.36577471,183.12,183.08,5.462]
[1722295290930,1.36577471,183.12,183.09,5.4617]
[1722295291144,1.3656746,183.11,183.06,13.6566]
[1722295291327,1.3657979,183.1,183.06,13.6566]
[1722295291522,5.4612,183.11,183.05,5.4629]
[1722295291829,1.36589786,183.1,183.06,5.4626]
[1722295292034,1.53589786,183.1,183.06,5.4626]
[1722295292522,0.17,183.1,183.06,5.4626]
[1722295292846,0.17,183.11,183.06,5.4626]
[1722295293032,0.17,183.11,183.07,5.4621]
[1722295293533,0.17,183.12,183.05,13.6573]
[1722295293854,1.3657395,183.14,183.09,5.4617]
[1722295294032,6.7921,183.15,183.09,5.4617]
[1722295294440,5.4597,183.17,183.11,5.461]
[1722295294641,1.36561216,183.14,183.08,13.6551]
[1722295294835,1.36561216,183.14,183.08,19.1169]
[1722295295038,1.36561216,183.14,183.09,5.4617]
[1722295295353,1.36561216,183.14,183.08,19.1169]
[1722295295554,1.36562069,183.13,183.08,19.1169]
[1722295295762,0.17,183.12,183.06,5.4624]
[1722295295923,5.4612,183.11,183.04,19.1206]
[1722295296130,0.17,183.12,183.05,5.4629]
[1722295296131,1.53583665,183.1,183.05,5.4629]
[1722295296451,0.17,183.09,183.05,5.4629]
[1722295296659,0.17,183.09,183.06,5.4626]
[1722295298037,0.17,183.09,183.02,5.4636]
[1722295298237,0.17,183.09,183.01,13.6604]
[1722295298433,0.17,183.09,182.97,6.5076]
[1722295298434,0.17,183.09,182.97,20.1705]
[1722295298639,5.4632,183.05,182.98,5.465]
[1722295298938,1.53627894,183.04,183.01,5.464]
[1722295299239,0.17,183.04,183.01,5.464]
[1722295299737,0.17,183.04,183.0,13.6609]
[1722295300348,0.17,183.04,183.0,19.125]
[1722295300541,0.17,183.04,183.0,13.6609]
[1722295300958,0.17,183.04,183.02,5.4637]
[1722295301360,0.17,183.04,183.0,13.6609]
[1722295301548,5.6333,183.04,182.97,11.9727]
[1722295301755,1.36637959,183.03,182.97,11.9727]
[1722295301935,0.17,183.02,182.97,11.9727]
[1722295302265,1.53637896,183.02,182.96,13.6639]
[1722295302452,1.53637896,183.02,182.94,5.466]
[1722295302757,1.53637896,183.02,182.95,13.6647]
[1722295303257,1.53637896,183.02,182.95,19.1303]
[1722295303568,1.53637896,183.02,182.98,5.465]
[1722295303743,0.17,183.02,182.99,5.4647]
[1722295304863,0.17,183.02,183.0,5.4644]
[1722295305863,0.17,183.02,182.99,5.4647]
[1722295306241,0.17,183.02,182.98,19.1273]
[1722295306570,0.17,183.02,182.94,13.6649]
[1722295306863,5.4644,183.01,182.95,5.4658]
[1722295307159,0.17,183.03,182.94,13.6649]
[1722295307160,7.00103362,183.0,182.94,13.6649]
[1722295307361,5.4649,182.99,182.92,5.4668]
[1722295307567,1.36675802,182.98,182.93,5.4664]
[1722295307749,0.17,182.97,182.94,5.4662]
[1722295307951,1.53667706,182.97,182.94,5.4662]
[1722295308152,1.36667706,182.97,182.91,13.6679]
[1722295308447,0.17,182.96,182.91,13.6679]
[1722295308648,0.17,182.96,182.94,5.4661]
[1722295308858,0.17,182.96,182.95,5.4659]
[1722295309963,0.17,182.96,182.94,19.1316]
[1722295310143,0.17,182.96,182.94,13.6654]
[1722295310338,0.17,182.96,182.94,5.4662]
[1722295310677,1.36673472,182.96,182.92,19.1329]
[1722295310835,1.53682474,182.95,182.87,6.1272]
[1722295311136,1.53682474,182.95,182.88,13.6698]
[1722295311869,1.36705551,182.94,182.88,13.6698]
[1722295312036,0.17,182.93,182.88,13.6698]
[1722295312637,0.17,182.93,182.89,5.4677]
[1722295312840,46.53702878,182.94,182.88,13.6698]
[1722295313048,45.17,182.94,182.88,13.6698]
[1722295313253,45.17,182.94,182.85,15.4144]
[1722295313254,45.17,182.94,182.92,5.4668]
[1722295313542,45.17,182.94,182.91,13.6678]
[1722295313543,45.17,182.94,182.93,5.4665]
[1722295313941,45.17,182.94,182.91,19.1347]
[1722295314766,45.17,182.94,182.92,5.4667]
[1722295315080,45.17,182.94,182.93,5.4665]
[1722295315444,0.17,182.94,182.93,5.4665]
[1722295315947,1.36669361,183.01,182.93,5.4665]
[1722295316463,5.4645,183.0,182.94,5.4661]
[1722295316665,46.36665007,182.99,182.94,5.4661]
[1722295316866,1.36667064,182.98,182.95,5.4659]
[1722295317070,5.4636,183.03,182.86,29.09]
[1722295317242,6.83016864,183.03,182.87,40.0]
[1722295318249,6.82986759,183.04,182.98,5.4648]
[1722295318451,5.4633,183.04,182.98,5.4648]
[1722295318652,1.36638268,183.03,182.99,5.4647]
[1722295318956,1.36636827,183.06,183.0,5.4644]
[1722295319348,6.82906827,183.06,183.0,5.4644]
[1722295319546,5.4627,183.06,183.0,5.4644]
[1722295320362,6.82853024,183.08,183.01,5.464]
[1722295320554,1.36608429,183.09,183.02,5.4638]
[1722295320752,1.36608429,183.09,182.99,13.6618]
[1722295320945,5.4647,183.0,182.95,15.6876]
[1722295321263,1.36650237,182.99,182.95,21.1535]
[1722295321578,1.36650237,182.99,182.95,21.1534]
[1722295321950,5.4635,183.04,182.98,5.4649]
[1722295322165,5.4632,183.05,182.98,5.465]
[1722295322470,6.99963644,183.04,182.98,5.465]
[1722295322678,5.4641,183.02,182.95,34.8182]
[1722295322972,1.53650068,183.01,182.95,29.3523]
[1722295323285,1.53650068,183.01,182.95,34.8179]
[1722295324164,0.17,183.01,182.96,5.4654]
[1722295324363,0.17,183.02,182.99,5.4647]
[1722295324666,1.36623957,183.11,183.04,5.4632]
[1722295324864,1.36623957,183.11,183.01,13.66]
[1722295324865,1.36623957,183.09,183.03,5.4635]
[1722295325055,1.36623957,183.09,183.01,13.66]
[1722295325365,6.82823957,183.09,183.03,5.4635]
[1722295325748,1.36623957,183.09,182.95,15.6876]
[1722295325948,1.36590318,183.11,182.96,20.0]
[1722295326151,1.36579235,183.1,182.96,20.0]
[1722295326456,5.4611,183.11,183.04,5.4629]
[1722295326765,1.36579156,183.1,183.05,5.4629]
[1722295327175,5.4618,183.09,183.03,13.6584]
[1722295327379,1.36579089,183.08,183.03,13.6584]
[1722295327558,1.36578995,183.07,183.03,19.1219]
[1722295327752,1.36578995,183.07,182.99,13.6613]
[1722295328085,5.463,183.05,182.99,13.6613]
[1722295328281,1.53615528,183.04,182.99,19.126]
[1722295328576,1.53615528,183.04,182.99,13.6613]
[1722295328759,0.17,183.04,182.99,13.6613]
[1722295328957,0.17,183.04,183.02,13.6596]
[1722295329270,0.17,183.04,183.02,19.1234]
[1722295329992,0.17,183.05,183.03,5.4635]
[1722295330151,0.17,183.05,182.98,13.6619]
[1722295330585,5.4635,183.04,182.98,13.6619]
[1722295330761,1.5361533,183.03,182.98,13.6619]
[1722295330965,0.17,183.03,182.98,13.6619]
[1722295331159,0.17,183.03,183.01,5.4641]
[1722295331365,0.17,183.03,183.02,5.4638]
[1722295331954,1.36599176,183.11,183.03,13.6589]
[1722295332260,6.82739176,183.11,183.03,13.6589]
[1722295332453,5.4608,183.13,183.06,13.6566]
[1722295332777,5.4609,183.12,183.06,13.6566]
[1722295332974,5.4612,183.11,183.06,13.6566]
[1722295333181,5.4608,183.13,183.06,13.6566]
[1722295333388,5.4597,183.16,183.09,5.4615]
[1722295333696,5.4597,183.16,183.1,5.4613]
[1722295333858,5.4593,183.18,183.11,5.4611]
[1722295334060,5.4609,183.12,183.05,34.7467]
[1722295334261,6.82677636,183.11,183.05,34.7467]
[1722295334470,5.4605,183.14,183.06,5.4624]
[1722295334680,6.8263611,183.13,183.06,5.4624]
[1722295334877,5.461,183.12,183.06,5.4624]
[1722295335465,0.17,183.11,183.06,5.4624]
[1722295335652,0.17,183.11,183.05,29.2838]
[1722295335853,0.17,183.11,183.05,15.6269]
[1722295336657,5.4614,183.1,183.05,15.6269]
[1722295336861,1.53575363,183.09,183.06,5.4626]
[1722295337084,1.53575363,183.09,183.05,15.6269]
[1722295337391,1.53575363,183.09,183.05,21.0895]
[1722295337560,0.17,183.09,183.05,15.6269]
[1722295338769,5.4597,183.16,183.07,13.6558]
[1722295338977,6.82565477,183.15,183.08,5.462]
[1722295339176,5.4603,183.14,183.08,5.462]
[1722295339869,5.46,183.15,183.08,5.462]
[1722295340274,1.3654438,183.14,183.09,5.4616]
[1722295340467,0.17,183.13,183.09,5.4616]
[1722295340788,5.4623,183.08,183.03,6.0539]
[1722295341088,5.4629,183.06,183.03,6.0539]
[1722295341294,5.4633,183.04,183.0,15.6287]
[1722295341485,1.5362021,183.03,183.0,15.6287]
[1722295341681,0.17,183.03,183.0,15.6287]
[1722295342998,0.17,183.04,183.0,15.6287]
[1722295343575,0.17,183.05,183.0,15.6287]
[1722295344172,0.17,183.05,183.0,21.0931]
[1722295344373,5.4638,183.03,182.98,6.1385]
[1722295344593,5.4638,183.03,182.95,15.9761]
[1722295344594,5.4642,183.01,182.95,15.9761]
[1722295344806,1.53641338,183.0,182.95,15.9761]
[1722295345097,5.4648,182.99,182.93,6.3678]
[1722295345304,1.53663652,182.98,182.93,6.3678]
[1722295345669,1.53663652,182.98,182.93,11.8343]
[1722295345885,1.53663652,182.98,182.94,5.4662]
[1722295346093,1.53663652,182.98,182.93,20.0336]
[1722295346393,0.17,182.98,182.93,20.0336]
[1722295346599,1.36639887,183.04,182.96,13.6637]
[1722295347090,5.4637,183.03,182.96,19.1291]
[1722295347469,6.82969887,183.04,182.96,13.6637]
[1722295347700,1.36627786,183.03,182.96,13.6637]
[1722295347913,0.17,183.02,182.96,13.6637]
[1722295348072,0.17,183.02,182.97,5.4653]
[1722295348277,0.17,183.02,182.98,5.465]
[1722295348489,0.17,183.03,182.98,5.465]
[1722295348874,0.17,183.03,182.99,5.4647]
[1722295349477,0.17,183.04,182.98,5.465]
[1722295349897,0.17,183.04,182.99,5.4647]
[1722295351002,1.36612723,183.08,182.99,13.6615]
[1722295351200,1.3659192,183.1,182.99,13.6615]
[1722295351502,6.82761316,183.1,183.02,13.6595]
[1722295351889,1.36591316,183.1,183.04,5.463]
[1722295352089,1.36567682,183.1,183.04,5.463]
[1722295352282,1.36567682,183.1,183.06,5.4626]
[1722295352884,6.82686121,183.11,183.05,5.4629]
[1722295353190,6.82686121,183.11,183.03,6.3678]
[1722295353191,1.36566015,183.1,183.03,6.3678]
[1722295353387,1.36566015,183.1,183.01,15.1162]
[1722295353596,13.6549,183.09,182.98,6.3678]
[1722295353899,5.4627,183.06,182.98,20.0297]
[1722295354103,0.17,183.05,183.0,5.4644]
[1722295354691,0.17,183.05,183.01,13.6602]
[1722295355186,1.53604672,183.05,183.01,13.6602]
[1722295355380,0.17,183.05,183.01,13.6602]
[1722295355703,0.17,183.05,183.01,19.1243]
[1722295355883,0.17,183.05,183.01,13.6602]
[1722295356800,13.6522,183.12,182.98,6.3678]
[1722295356801,1.36596547,183.12,183.04,13.658]
[1722295357105,1.36596547,183.12,183.07,5.4623]
[1722295357509,5.4604,183.14,183.07,5.4621]
[1722295357717,1.36558405,183.16,183.07,5.4621]
[1722295357919,1.36558405,183.16,182.99,20.0]
[1722295357920,5.4599,183.16,183.05,15.2315]
[1722295358212,6.82521749,183.16,183.05,15.2315]
[1722295358588,1.36531749,183.16,183.11,5.4611]
[1722295358803,5.4591,183.18,183.11,5.4611]
[1722295359008,1.3652007,183.17,183.11,5.4611]
[1722295359214,257.9,183.22,183.12,13.6517]
[1722295359382,6.82350527,183.21,183.14,5.4601]
[1722295359584,5.4585,183.2,183.14,5.4601]
[1722295359790,1.36500507,183.19,183.14,5.4601]
[1722295359999,5.4585,183.2,183.12,19.1124]
[1722295360205,1.36500507,183.18,183.12,19.1124]
[1722295360506,5.4588,183.19,183.13,5.4605]
[1722295360725,1.36501817,183.23,183.12,13.6517]
[1722295360889,1.36501817,183.23,183.15,13.6494]
[1722295360890,5.4577,183.23,183.15,13.6494]
[1722295361211,1.36481665,183.22,183.15,13.6494]
[1722295361404,1.36481665,183.22,183.15,19.1093]
[1722295361603,6.82281665,183.22,183.15,19.1093]
[1722295361801,5.4582,183.21,183.15,13.6494]
[1722295361996,1.36486667,183.2,183.15,13.6494]
[1722295362181,1.36486667,183.2,183.15,29.9504]
[1722295362383,5.4578,183.23,183.15,29.9504]
[1722295362613,6.82255397,183.23,183.15,29.9504]
[1722295362817,1.36475394,183.26,183.17,5.4592]
[1722295363193,1.36475394,183.26,183.15,35.4103]
[1722295363396,5.4579,183.22,183.15,35.4103]
[1722295363711,1.3648276,183.21,183.15,35.4103]
[1722295364210,5.4574,183.24,183.15,29.9504]
[1722295364386,0.17,183.23,183.15,29.9504]
[1722295365117,0.17,183.23,183.18,5.459]
[1722295365331,0.17,183.23,183.16,5.4594]
[1722295365620,0.7891325,183.27,183.18,13.6474]
[1722295365907,5.457,183.25,183.18,13.6474]
[1722295366096,5.457,183.25,183.18,19.1065]
[1722295366300,5.4573,183.24,183.18,19.1065]
[1722295366502,5.4573,183.24,183.18,13.6474]
[1722295366907,1.36461652,183.26,183.18,19.1065]
[1722295367115,1.36461056,183.25,183.19,5.4587]
[1722295367312,0.17,183.24,183.19,5.4587]
[1722295367502,0.7891325,183.27,183.18,13.6474]
[1722295368117,0.7891325,183.27,183.21,5.4581]
[1722295368519,6.2456325,183.27,183.21,5.4581]
[1722295368707,0.7891325,183.27,183.21,5.4581]
[1722295369308,6.2455325,183.27,183.18,13.6474]
[1722295370236,1.53440116,183.26,183.18,13.6474]
[1722295370402,1.53440116,183.26,183.18,19.1062]
[1722295370403,5.457,183.25,183.18,19.1062]
[1722295370598,1.53460311,183.24,183.17,6.5295]
[1722295370799,0.17,183.26,183.17,6.5295]
[1722295371007,1.53473009,183.26,183.17,6.5295]
[1722295371833,5.4581,183.22,183.17,6.5295]
[1722295372004,0.17,183.21,183.17,6.5295]
[1722295373103,0.17,183.21,183.17,11.9888]
[1722295373403,0.7891325,183.27,183.17,20.1778]
[1722295373404,0.17,183.22,183.17,20.1778]
[1722295373607,0.17,183.22,183.18,5.459]
[1722295374718,0.17,183.23,183.18,5.459]
[1722295375327,0.17,183.23,183.19,5.4587]
[1722295375620,6.2455325,183.27,183.2,5.4584]
[1722295375866,6.2455325,183.27,183.21,5.4581]
[1722295377516,0.17,183.26,183.21,5.4581]
[1722295379110,5.6267,183.26,183.2,13.6461]
[1722295379317,1.36444062,183.25,183.18,5.4588]
[1722295379524,0.17,183.24,183.17,6.5295]
[1722295379731,1.53461954,183.24,183.17,6.5295]
[1722295379920,5.4576,183.23,183.17,6.5295]
[1722295380123,0.17,183.22,183.17,11.9888]
[1722295380323,0.17,183.22,183.19,5.4586]
[1722295380855,0.7891325,183.27,183.21,5.4579]
[1722295381215,2.15344895,183.27,183.21,5.4579]
[1722295381415,0.7891325,183.27,183.22,5.4578]
[1722295383246,0.17,183.26,183.22,5.4578]
[1722295383556,0.17,183.26,183.23,5.4575]
[1722295383720,0.7891325,183.27,183.24,5.4573]
[1722295384642,0.7891325,183.27,183.22,13.6447]
[1722295385039,0.7891325,183.27,183.22,19.1025]
[1722295385348,0.17,183.26,183.22,19.1025]
[1722295385746,0.17,183.26,183.22,13.6447]
[1722295385925,0.17,183.26,183.24,5.457]
[1722295387331,0.17,183.26,183.18,13.647]
[1722295387539,5.4573,183.24,183.18,13.647]
[1722295387839,6.99238769,183.23,183.18,13.647]
[1722295388363,0.17,183.23,183.18,19.106]
[1722295388661,0.17,183.24,183.19,5.4586]
[1722295388835,0.17,183.25,183.19,5.4586]
[1722295389150,0.17,183.25,183.18,13.647]
[1722295389350,0.17,183.26,183.18,13.647]
[1722295390756,0.17,183.26,183.21,5.458]
[1722295391529,5.6267,183.26,183.18,13.647]
[1722295391844,5.4573,183.24,183.18,19.1058]
[1722295392033,0.17,183.26,183.17,6.5295]
[1722295392034,1.36455157,183.23,183.17,6.5295]
[1722295392228,0.17,183.23,183.17,6.5295]
[1722295392427,0.17,183.26,183.17,6.5295]
[1722295392729,5.4575,183.24,183.17,6.5295]
[1722295392945,0.17,183.23,183.17,6.5295]
[1722295393251,6.99227104,183.23,183.17,11.9886]
[1722295393431,5.6276,183.23,183.17,11.9886]
[1722295393752,0.17,183.23,183.17,11.9886]
[1722295393959,0.17,183.24,183.17,11.9886]
[1722295394130,0.17,183.24,183.18,5.459]
[1722295394528,1.36476404,183.24,183.22,5.4578]
[1722295394745,0.7891325,183.27,183.23,5.4575]
[1722295395262,0.7891325,183.27,183.18,25.78]
[1722295395738,0.7891325,183.27,183.26,19.0985]
[1722295397148,0.7891325,183.27,183.23,5.4575]
[1722295397333,0.7891325,183.27,183.25,5.4569]
[1722295398459,0.17,183.26,183.25,19.0994]
[1722295402438,0.17,183.26,183.25,41.2336]
[1722295402638,0.7891325,183.27,183.26,5.4567]
[1722295403370,0.7891325,183.27,183.23,5.4575]
[1722295403669,0.7891325,183.27,183.26,5.4567]
[1722295404047,0.9591325,183.27,183.26,5.4567]
[1722295404542,0.7891325,183.27,183.26,5.4567]
[1722295408580,257.9,183.38,183.34,5.4541]
[1722295408756,380.7,183.4,183.35,5.454]
[1722295409247,380.7,183.4,183.35,5.4539]
[1722295409458,0.17,183.39,183.35,5.4539]
[1722295410357,0.17,183.39,183.34,5.4543]
[1722295410565,0.17,183.39,183.35,5.4539]
[1722295410898,380.7,183.4,183.37,5.4533]
[1722295411258,1.36336558,183.39,183.33,13.6365]
[1722295411453,1.36365601,183.39,183.23,22.956]
[1722295411673,5.2761,183.38,183.27,19.0972]
[1722295411961,5.2761,183.38,183.28,5.456]
[1722295411962,5.4544,183.34,183.28,5.456]
[1722295412276,1.36407472,183.33,183.29,5.4556]
[1722295412453,1.36393975,183.35,183.33,5.4545]
[1722295412777,0.17,183.34,183.3,13.6386]
[1722295413360,0.17,183.34,183.33,5.4546]
[1722295413565,0.17,183.34,183.3,13.6386]
[1722295414667,0.17,183.35,183.3,19.094]
[1722295414983,0.17,183.35,183.3,13.6386]
[1722295415284,1.36393507,183.37,183.33,13.6365]
[1722295415285,0.17,183.36,183.33,13.6365]
[1722295415483,0.17,183.36,183.35,5.454]
[1722295415660,6.81607431,183.41,183.35,5.454]
[1722295416064,6.81607431,183.41,183.33,13.6365]
[1722295416065,1.36377431,183.41,183.36,5.4537]
[1722295416285,1.36377431,183.41,183.33,13.6365]
[1722295416869,1.36377431,183.41,183.36,5.4537]
[1722295417286,1.36377431,183.41,183.38,5.453]
[1722295417578,1.44293083,183.42,183.3,48.98]
[1722295417785,1.44293083,183.42,183.28,21.8694]
[1722295417786,1.44293083,183.42,183.39,13.6318]
[1722295417963,0.07955081,183.42,183.39,13.6318]
[1722295418463,0.07955081,183.42,183.39,19.0844]
[1722295418689,1.44278607,183.42,183.39,19.0844]
[1722295419361,1.44278607,183.42,183.39,13.6318]
[1722295419792,1.44278607,183.42,183.39,19.0846]
[1722295419967,0.07955081,183.42,183.4,5.4525]
[1722295420288,0.07955081,183.42,183.39,19.0846]
[1722295420798,1.44277039,183.42,183.4,5.4525]
[1722295421299,0.07955081,183.42,183.39,19.0846]
[1722295421592,0.24955081,183.42,183.39,19.0846]
[1722295421975,0.24955081,183.42,183.4,5.4524]
[1722295422295,0.24955081,183.42,183.41,5.4522]
[1722295422793,0.24955081,183.42,183.35,13.6348]
[1722295423389,5.4525,183.4,183.35,13.6348]
[1722295423589,1.53354056,183.39,183.33,27.4135]
[1722295423894,1.53354056,183.39,183.33,5.4545]
[1722295424077,1.53354056,183.39,183.34,5.4542]
[1722295424281,1.53354056,183.39,183.36,5.4537]
[1722295424582,0.17,183.39,183.36,5.4537]
[1722295424787,0.17,183.39,183.37,5.4534]
[1722295425292,0.17,183.39,183.29,21.9536]
[1722295425687,0.17,183.39,183.36,5.4537]
[1722295425997,0.17,183.39,183.37,5.4532]
[1722295426194,1.44308848,183.42,183.38,19.0857]
[1722295426372,1.44308848,183.42,183.38,13.6328]
[1722295426997,1.44308848,183.42,183.38,19.0858]
[1722295427183,1.44308848,183.42,183.39,5.4527]
[1722295427386,0.07955081,183.42,183.39,5.4527]
[1722295427570,0.07955081,183.42,183.34,13.6356]
[1722295427765,0.07955081,183.42,183.38,5.4531]
[1722295428177,0.24955081,183.42,183.38,5.4531]
[1722295428992,0.17,183.41,183.38,5.4531]
[1722295429184,0.07955081,183.42,183.38,5.4531]
[1722295433485,0.07955081,183.42,183.37,19.0869]
[1722295433804,0.07955081,183.42,183.38,5.4531]
[1722295436305,0.07955081,183.42,183.32,27.2743]
[1722295436473,0.07955081,183.42,183.34,13.6357]
[1722295436678,0.07955081,183.42,183.37,5.4534]
[1722295436895,0.07955081,183.42,183.38,5.4531]
[1722295437393,0.07955081,183.42,183.41,5.4522]
[1722295437600,0.07955081,183.42,183.36,13.6336]
[1722295437800,0.07955081,183.42,183.37,5.4531]
[1722295437973,0.07955081,183.42,183.32,27.2743]
[1722295437974,1.44284541,183.42,183.33,5.4546]
[1722295438180,2.39303162,183.42,183.29,21.9536]
[1722295438579,2.39303162,183.42,183.36,5.4536]
[1722295438890,0.17,183.41,183.35,13.6349]
[1722295439284,0.17,183.41,183.39,5.4528]
[1722295439503,0.07955081,183.42,183.4,5.4525]
[1722295439883,0.07955081,183.42,183.41,5.4522]
[1722295442917,0.07955081,183.42,183.33,25.74]
[1722295443085,0.07955081,183.42,183.39,5.4527]
[1722295443283,0.07955081,183.42,183.37,5.4531]
[1722295443486,0.17,183.39,183.38,5.4531]
[1722295444611,0.17,183.39,183.36,13.6343]
[1722295444905,0.17,183.39,183.36,19.088]
[1722295445092,0.17,183.39,183.36,13.6343]
[1722295445299,1.53348788,183.4,183.36,13.6343]
[1722295445502,0.17,183.4,183.36,5.4534]
[1722295445701,0.17,183.4,183.3,25.74]
[1722295445884,0.17,183.4,183.37,5.4534]
[1722295446392,0.17,183.4,183.35,19.0881]
[1722295446620,5.6224,183.41,183.35,19.0881]
[1722295446910,5.4532,183.38,183.32,5.4548]
[1722295447116,5.4532,183.38,183.31,13.6377]
[1722295447117,1.53385465,183.37,183.31,13.6377]
[1722295447286,1.36385465,183.37,183.31,13.6377]
[1722295447483,5.6237,183.36,183.29,5.4558]
[1722295447782,1.36398456,183.35,183.29,5.4558]
[1722295447991,0.17,183.34,183.29,5.4558]
[1722295448189,0.17,183.34,183.32,5.4548]
[1722295448813,0.17,183.34,183.33,5.4546]
[1722295449117,1.36397809,183.38,183.33,5.4546]